[Event "Austrian Championship 2022"]
[Site "Vienna"]
[Date "2022.08.16"]
[Round "6.1"]
[White "Froewis, Annika"]
[Black "Blohberger, Felix"]
[Result "0-1"]
[ECO "B13"]
[WhiteElo "2044"]
[BlackElo "2492"]
[Annotator "TA"]
[PlyCount "132"]
[EventDate "2022.08.12"]
[EventType "swiss"]
[EventCountry "AUT"]
[SourceTitle "playchess.com"]
[Source "ChessBase"]
[SourceQuality "1"]
[TimeControl "40/5400+30:1800+30"]

{[%evp 9,132,0,0,0,0,0,0,0,0,0,-2,-26,-26,-26,-21,-28,-27,-31,-33,-33,-30,-39,-41,-44,-46,-45,-16,-51,-37,-54,-25,-53,-53,-72,-75,-77,0,0,0,0,0,-20,-20,-20,-20,-20,0,-20,-20,-20,-20,-20,-20,-20,0,-20,-20,-20,28,-2,-4,-20,-2,-25,-24,-26,0,-25,-24,-134,-134,-29989,-134,-134,0,-134,-134,-134,-134,-134,-134,-134,-134,-134,-134,-134,-134,-134,-119,-220,-191,-196,-184,-211,-211,-348,-339,-511,-489,-584,-614,-772,-584,-695,-584,-564,-518,-453,-381,-379,-330,-297,-272,-149,-149,-582,-582,-582,-561,-1635,-1411,-29959,-29967,-29986,-29987]} 1. d4 {[%emt 0:00:03]} d5 {[%emt 0:00:12]} 2. Bf4 {[%emt 0:00:06]} c5 {[%emt 0:01:31]} 3. e3 {[%emt 0:00:14]} cxd4 {[%emt 0:00:15]} 4. exd4 {[%emt 0:02:48]} Nc6 {[%emt 0:00:14]} 5. c3 {[%emt 0:00:55]} Bf5 {[%emt 0:00:09]} 6. Bd3 {[%emt 0:05:40] B13: Caro-Kann: Exchange Variation and Panov-Botvinnik Attack.} Bxd3 {[%emt 0:00:07]} 7. Qxd3 {[%emt 0:00:04]} e6 {[%emt 0:00:05]} 8. Nd2 {[%emt 0:06:06] [#] The position is equal.} Nge7 $146 {[%emt 0:00:36][%cal Bg8e7,Be7g6,Bg6f4][%mdl 32]} ({Predecessor:} 8... Nf6 9. Ngf3 Nh5 10. Be3 Bd6 11. O-O Nf4 12. Bxf4 Bxf4 13. Rfe1 O-O 14. Nb3 g6 {½-½ (38) Berkes,F (2673)-Tabatabaei,M (2613) Krasnaya Polyana 2021}) 9. h3 {[%emt 0:03:40]} Ng6 {[%emt 0:01:37]} 10. Ne2 {[%emt 0:05:07]} Nxf4 {[%emt 0:00:27]} 11. Nxf4 {[%emt 0:00:06]} Bd6 {[%emt 0:00:06]} 12. Qf3 {[%emt 0:03:17]} O-O {[%emt 0:01:13]} 13. Nd3 {[%emt 0:03:38]} b5 {[%emt 0:00:29]} 14. a3 {[%emt 0:05:41]} a5 {[%emt 0:00:16][%cal Ba7a5,Ba5b4][%mdl 32]} 15. O-O {[%emt 0:05:21]} b4 {[%emt 0:00:35]} 16. axb4 {[%emt 0:06:46]} axb4 {[%emt 0:00:07]} 17. Nb3 {[%emt 0:00:24]} Qb6 {[%emt 0:04:11] Threatens to win with ...bxc3.} 18. Ndc5 {[%emt 0:02:25] Pair of Knights!} Rfc8 {[%emt 0:04:38]} 19. Qd3 {[%emt 0:08:29]} h6 {[%emt 0:19:59]} 20. Rfd1 {[%emt 0:09:35] [#]} Ne5 $1 {[%emt 0:09:45]} 21. Qe2 {[%emt 0:09:18]} (21. Qc2 bxc3) 21... Nc4 {[%emt 0:00:57]} 22. g3 {[%emt 0:00:47]} Na5 {[%emt 0:22:55]} ({Don't play} 22... Bxc5 $6 23. Nxc5 bxc3 24. bxc3 $15) ({Black should try} 22... Qb5 $17) 23. Nxa5 $11 {[%emt 0:06:12]} Rxa5 {[%emt 0:00:13]} 24. Rxa5 {[%emt 0:00:06]} Qxa5 {[%emt 0:00:06]} 25. Nb7 {[%emt 0:00:26]} Qb6 {[%emt 0:00:09]} 26. Nxd6 {[%emt 0:00:07]} Qxd6 {[%emt 0:00:04][%mdl 4096] Endgame KQR-KQR} 27. Rd3 {[%emt 0:08:07]} Qa6 {[%emt 0:02:54] ...bxc3 is the strong threat.} 28. Qd2 {[%emt 0:00:54]} Qa1+ {[%emt 0:01:05]} 29. Kg2 {[%emt 0:00:16]} Qb1 {[%emt 0:00:55]} 30. Re3 {[%emt 0:01:06]} Rc4 {[%emt 0:04:47]} 31. h4 {[%emt 0:01:59]} Qa2 {[%emt 0:01:32]} 32. Qc1 {[%emt 0:03:46]} Qa7 {[%emt 0:04:57]} 33. Qd2 {[%emt 0:00:19]} Rc6 {[%emt 0:01:58]} (33... bxc3 {deserves consideration.} 34. bxc3 Qa1) 34. Kg1 {[%emt 0:00:57]} Qa2 {[%emt 0:04:07]} (34... Qa1+ {keeps more tension.} 35. Kg2 Qb1 36. h5 bxc3 37. Rxc3 Rb6) 35. Qc1 {[%emt 0:00:45]} Qc4 {[%emt 0:00:11]} 36. Qe1 {[%emt 0:00:42]} Ra6 {[%emt 0:00:20]} 37. Kg2 {[%emt 0:00:33]} Ra2 {[%emt 0:00:42]} 38. Qc1 {[%emt 0:01:22]} (38. b3 $5 Qxb3 39. Rxe6 $11) 38... Qb3 {[%emt 0:04:42]} 39. cxb4 {[%emt 0:00:15]} (39. Rf3 $1 $11 {was the only way to keep the balance.}) 39... Qxb2 $17 {[%emt 0:00:39]} 40. Qc8+ {[%emt 0:00:59]} Kh7 {[%emt 0:00:05]} 41. Rf3 {[%emt 0:30:48] [#]} Qb1 $40 {[%emt 0:16:00][%mdl 128] Black attacks.} ({Much worse is} 41... Qxd4 $6 42. Rxf7 Qe4+ 43. Kh2 $11) (41... Ra1 $1 $17 42. Qc3 (42. Rxf7 $2 Qe2 $19) 42... Qb1 43. Qd3+ Kg8 44. Qxb1 Rxb1) 42. Qc3 {[%emt 0:00:00] [#]} (42. Rxf7 $11 Qe4+ 43. Kh3) 42... Ra1 $1 {[%emt 0:00:21][%csl Ga1][%cal Rb1h1] Black is much more active.} 43. Qd3+ {[%emt 0:00:00]} Kg8 {[%emt 0:00:19][%csl Ga1][%cal Rb1h1]} 44. Qxb1 {[%emt 0:00:00]} Rxb1 {[%emt 0:00:06] KR-KR} 45. Rd3 {[%emt 0:00:00]} h5 {[%emt 0:00:50]} 46. Kf3 {[%emt 0:00:00]} Rxb4 {[%emt 0:00:18]} 47. Ke3 {[%emt 0:00:00]} Kh7 {[%emt 0:00:38]} 48. Ra3 {[%emt 0:00:00]} Kg6 {[%emt 0:00:08]} 49. Rd3 {[%emt 0:00:00]} (49. Ra7 $17) 49... Kf5 $19 {[%emt 0:01:29]} 50. Ra3 {[%emt 0:00:00]} f6 {[%emt 0:01:14][%cal Bf7f6,Bf6g5,Bg5g4][%mdl 32]} 51. Rd3 {[%emt 0:00:00]} Rb1 {[%emt 0:01:15]} 52. Kf3 {[%emt 0:00:00]} (52. Ke2 $142) 52... Re1 {[%emt 0:00:24]} 53. Rd2 {[%emt 0:00:00]} (53. Ra3 {was necessary.}) 53... g5 {[%emt 0:01:37]} 54. hxg5 {[%emt 0:00:15]} fxg5 {[%emt 0:00:16]} 55. Ra2 {[%emt 0:02:00]} g4+ {[%emt 0:08:13]} 56. Kg2 {[%emt 0:00:01]} Rd1 {[%emt 0:07:30]} 57. Ra4 {[%emt 0:00:10]} Kf6 {[%emt 0:01:30]} 58. Rb4 {[%emt 0:00:49]} Re1 {[%emt 0:00:40]} 59. Rb2 {[%emt 0:00:31]} Re4 {[%emt 0:01:03]} 60. Rd2 {[%emt 0:00:11]} Ke7 {[%emt 0:00:07]} 61. Rd1 {[%emt 0:04:33]} Kd6 {[%emt 0:00:23] Hoping for ...Kc6.} 62. Rh1 $2 {[%emt 0:00:12][%mdl 8192]} (62. f4 $17) 62... Rxd4 {[%emt 0:00:22] Strongly threatening ...Re4.} 63. Rxh5 {[%emt 0:00:05]} Re4 {[%emt 0:00:25] White must now prevent ...e5.} 64. Rh4 {[%emt 0:01:21]} d4 {[%emt 0:00:29][%cal Bd5d4,Bd4d3,Bd3d2][%mdl 32]} 65. Kf1 {[%emt 0:00:49]} d3 {[%emt 0:01:28]} 66. f3 {[%emt 0:00:24]} d2 {[%emt 0:00:16] Weighted Error Value: White=0.37/Black=0.12 (very precise)} 0-1

[Event "Austrian Championship 2022"]
[Site "Vienna"]
[Date "2022.08.16"]
[Round "6.2"]
[White "Horvath, Dominik"]
[Black "Diermair, Andreas"]
[Result "0-1"]
[ECO "A07"]
[WhiteElo "2488"]
[BlackElo "2452"]
[Annotator "TA"]
[PlyCount "78"]
[EventDate "2022.08.12"]
[EventType "swiss"]
[EventCountry "AUT"]
[SourceTitle "playchess.com"]
[Source "ChessBase"]
[SourceQuality "1"]
[TimeControl "40/5400+30:1800+30"]

{[%evp 9,78,7,17,-8,30,35,25,27,28,14,37,43,43,37,60,64,73,68,78,7,90,45,34,-63,-71,-59,-72,-81,-78,-88,-70,-86,-80,-118,-131,-133,-128,-152,-131,-143,-145,-144,-138,-204,-206,-264,-243,-404,-216,-208,-183,-310,-305,-317,-293,-308,-306,-703,-679,-1346,-1163,-1577,-753,-715,-711,-1092,-1000,-1009,-990,-29985,-29986]} 1. Nf3 {[%emt 0:00:01]} d5 {[%emt 0:00:48]} 2. g3 {[%emt 0:00:05]} Bg4 {[%emt 0:01:55]} 3. Bg2 {[%emt 0:00:05]} e6 {[%emt 0:00:11]} 4. O-O {[%emt 0:00:19]} Nf6 {[%emt 0:00:39]} 5. d3 {[%emt 0:00:45]} Be7 {[%emt 0:00:51]} 6. Qe1 {[%emt 0:02:12] A07: Réti Opening: New York and Capablanca Systems.} c5 {[%emt 0:02:02] [#]} 7. Ne5 $146 {[%emt 0:01:06][%cal Bf3e5,Be5d3,Bd3f4][%mdl 32]} ({Predecessor:} 7. e4 Nc6 8. c3 O-O 9. h3 Bh5 10. Qe2 h6 11. Nbd2 Qc7 12. Re1 Rad8 13. b3 Rfe8 {0-1 (29) Onischuk,V (2622)-Bluebaum,M (2669) Chess.com INT 2021}) 7... Bh5 {[%emt 0:02:20]} 8. e4 {[%emt 0:00:29] White has an edge.} dxe4 {[%emt 0:12:38]} 9. Nc3 {[%emt 0:03:36]} O-O {[%emt 0:06:29]} (9... Bf3 $5) 10. dxe4 {[%emt 0:07:05]} Nfd7 {[%emt 0:03:32]} 11. Nd3 {[%emt 0:00:38]} Nc6 {[%emt 0:04:25]} 12. Nf4 $1 {[%emt 0:00:59]} Bg6 {[%emt 0:00:05]} 13. h4 {[%emt 0:00:02] Hoping for h5.} Bd6 {[%emt 0:14:18]} 14. Nb5 {[%emt 0:12:18]} ({White should try} 14. Nxg6 $16 fxg6 15. Be3) 14... Be5 {[%emt 0:06:37]} (14... Bxf4 $11 15. Bxf4 Qb6) 15. h5 {[%emt 0:09:56]} Bxf4 {[%emt 0:00:12]} 16. Bxf4 {[%emt 0:00:30]} (16. hxg6 $14 Bxc1 17. gxf7+ Rxf7 18. Rxc1) 16... Bxh5 $15 {[%emt 0:00:07]} 17. Bd6 {[%emt 0:00:01]} a6 {[%emt 0:06:12]} 18. Bxf8 {[%emt 0:04:00] Black converts the advantage convincingly.} axb5 {[%emt 0:00:06]} 19. Bd6 {[%emt 0:00:02]} Nd4 {[%emt 0:03:33]} 20. e5 {[%emt 0:16:38]} Ra4 {[%emt 0:05:26][%cal Ba8a4,Ba4d4,Bd4d2][%mdl 32] And now ...Ne2+ would win. Black is more active.} 21. f4 {[%emt 0:16:50]} ({Avoid the trap} 21. Bxb7 $2 Bf3 22. b3 Bxb7 $1 $19) 21... Nxc2 {[%emt 0:01:03]} 22. Qf2 {[%emt 0:00:03]} Nxa1 {[%emt 0:00:19]} 23. Rxa1 {[%emt 0:00:01]} b6 {[%emt 0:02:21][%cal Od7f6]} 24. b3 {[%emt 0:06:29]} Rd4 {[%emt 0:01:07][%cal Od7f6]} 25. a4 {[%emt 0:00:10]} bxa4 {[%emt 0:02:02]} 26. bxa4 {[%emt 0:00:04]} (26. Rxa4 $17 Rxa4 27. bxa4) 26... h6 $19 {[%emt 0:02:31]} 27. Qf1 {[%emt 0:03:39]} Bg6 {[%emt 0:04:12]} 28. Qb5 $2 {[%emt 0:02:25]} (28. Qa6) 28... Kh7 {[%emt 0:10:24]} (28... Rd3 $142 29. Kh2 Nf6 $1 {[%mdl 512]} 30. exf6 Qxd6) 29. Qc6 {[%emt 0:01:06]} Rd2 {[%emt 0:03:31][%cal Od7f6] Threatens to win with ...Nf6!} 30. Bc7 {[%emt 0:01:08]} (30. Qa8 {was necessary.} Qxa8 31. Bxa8) 30... Qc8 {[%emt 0:00:52]} 31. a5 {[%emt 0:00:06] a6 is the strong threat.} Qa6 {[%emt 0:03:04] White must now prevent ...Qd3.} 32. Bf1 {[%emt 0:00:13] Prevents Qd3.} c4 $1 {[%emt 0:00:29][%cal Og6d3]} 33. Bxc4 {[%emt 0:03:22] [#]} (33. Bxb6 Nxb6 34. Qxb6) 33... Qa7 $1 {[%emt 0:00:48]} 34. Bf1 {[%emt 0:07:53][%cal Rc7b6]} bxa5+ {[%emt 0:00:18]} 35. Kh1 {[%emt 0:00:04]} Qf2 {[%emt 0:00:46]} (35... Qe3 $142 36. Bg2 {[#]} Rxg2 $1 {[%mdl 512]} 37. Qxg2 Be4) 36. Bg2 {[%emt 0:00:03]} Rc2 {[%emt 0:00:24]} 37. Qb7 {[%emt 0:00:20]} Qxg3 {[%emt 0:00:47]} 38. Rf1 {[%emt 0:01:58]} Nc5 {[%emt 0:00:26]} 39. Qc6 {[%emt 0:00:04] [#]} Rxg2 $1 {[%emt 0:00:19] Weighted Error Value: White=0.76/Black=0.24 (precise)} 0-1

[Event "Austrian Championship 2022"]
[Site "Vienna"]
[Date "2022.08.16"]
[Round "6.2"]
[White "Jethan, Martin"]
[Black "Kordzadze, Nino"]
[Result "1-0"]
[ECO "A96"]
[WhiteElo "2103"]
[BlackElo "2043"]
[Annotator "NA RC"]
[PlyCount "53"]
[EventDate "2022.08.12"]
[EventType "swiss"]
[EventCountry "AUT"]
[SourceTitle "playchess.com"]
[Source "ChessBase"]
[SourceQuality "1"]
[TimeControl "40/5400+30:1800+30"]

1. d4 {[%emt 0:00:03]} e6 {[%emt 0:00:06]} 2. c4 {[%emt 0:00:09]} f5 {[%emt 0:00:05]} 3. Nf3 {[%emt 0:00:08]} Nf6 {[%emt 0:00:06]} 4. g3 {[%emt 0:00:07]} Be7 {[%emt 0:00:07]} 5. Bg2 {[%emt 0:00:11]} d6 {[%emt 0:00:10]} 6. O-O {[%emt 0:00:11]} O-O {[%emt 0:00:05]} 7. Nc3 {[%emt 0:00:39]} Ne4 {[%emt 0:00:30]} 8. Qc2 {[%emt 0:00:51]} Nxc3 {[%emt 0:01:48]} 9. bxc3 {[%emt 0:00:07]} c5 {[%emt 0:28:33]} 10. e4 {[%emt 0:05:19]} d5 {[%emt 0:09:13]} 11. cxd5 {[%emt 0:07:47]} fxe4 {[%emt 0:03:25]} 12. Qxe4 {[%emt 0:01:59]} exd5 {[%emt 0:00:56]} 13. Qe3 {[%emt 0:04:25]} cxd4 {[%emt 0:28:12]} 14. Nxd4 {[%emt 0:05:34]} Bf6 {[%emt 0:10:23]} 15. Ba3 {[%emt 0:15:45]} Re8 {[%emt 0:01:57]} 16. Bxd5+ {[%emt 0:00:39]} Kh8 {[%emt 0:00:04]} 17. Qf3 {[%emt 0:03:07]} Bg4 {[%emt 0:02:33]} 18. Qh1 {[%emt 0:02:15]} Bxd4 {[%emt 0:03:57]} 19. Bxb7 {[%emt 0:03:03]} Bb6 {[%emt 0:00:34]} 20. Bxa8 {[%emt 0:08:12]} Be2 {[%emt 0:00:11]} 21. Rfe1 {[%emt 0:06:18]} Bxf2+ {[%emt 0:02:57]} 22. Kxf2 {[%emt 0:00:07]} Qb6+ {[%emt 0:00:06]} 23. Kg2 {[%emt 0:00:33]} Nc6 {[%emt 0:00:07]} 24. Qg1 {[%emt 0:01:22]} Qa6 {[%emt 0:02:30]} 25. Qf2 {[%emt 0:02:39]} Rxa8 {[%emt 0:00:25]} 26. Qxe2 {[%emt 0:03:33]} Qxa3 {[%emt 0:00:15]} 27. Qe8+ {[%emt 0:00:09]} 1-0

[Event "Austrian Championship 2022"]
[Site "Vienna"]
[Date "2022.08.16"]
[Round "6.3"]
[White "Stanec, Nikolaus"]
[Black "Morgunov, Marc"]
[Result "1/2-1/2"]
[ECO "A48"]
[WhiteElo "2460"]
[BlackElo "2376"]
[Annotator "TA"]
[PlyCount "77"]
[EventDate "2022.08.12"]
[EventType "swiss"]
[EventCountry "AUT"]
[SourceTitle "playchess.com"]
[Source "ChessBase"]
[SourceQuality "1"]
[TimeControl "40/5400+30:1800+30"]

{[%evp 11,77,0,18,13,20,22,35,45,56,62,55,56,59,66,50,53,66,58,65,62,65,13,14,0,0,0,0,0,0,0,0,0,22,29,56,55,46,37,37,38,41,40,87,0,0,0,0,0,0,0,0,0,0,0,0,0,0,0,0,0,0,0,0,0,0,0,0,0]} 1. d4 {[%emt 0:00:13]} Nf6 {[%emt 0:00:11]} 2. Nf3 {[%emt 0:00:08]} g6 {[%emt 0:00:05]} 3. Bf4 {[%emt 0:00:12]} Bg7 {[%emt 0:00:07]} 4. e3 {[%emt 0:00:06]} O-O {[%emt 0:00:16]} 5. Be2 {[%emt 0:00:06]} d6 {[%emt 0:00:27]} 6. O-O {[%emt 0:00:08]} c5 {[%emt 0:01:16] 6...Nc6 is becoming the main line.} 7. c3 {[%emt 0:00:32] A48: 1 d4 Nf6 2 Nf3 g6: Torre, London and Colle Systems.} Qb6 {[%emt 0:01:11]} 8. Nbd2 {[%emt 0:00:45]} d5 {[%emt 0:10:24]} 9. Qb3 {[%emt 0:02:32] White is slightly better.} c4 {[%emt 0:14:04] [#]} 10. Qxb6 $146 {[%emt 0:00:13]} ({Predecessor:} 10. Qa3 Nc6 11. b3 cxb3 12. axb3 Nh5 13. Bg5 e6 14. e4 h6 15. Be3 f5 16. exd5 exd5 {½-½ (32) Dhulipalla,B (2316)-Abhishek,K (2389) Lucknow 2016}) 10... axb6 {[%emt 0:00:04][%cal Ba7b6,Bb6b5,Bb5a4][%mdl 32]} 11. b3 {[%emt 0:19:38]} b5 {[%emt 0:02:30]} 12. a4 $1 {[%emt 0:05:05]} (12. bxc4 bxc4 13. Rfb1 Nc6 $11) 12... bxa4 {[%emt 0:00:28]} 13. bxc4 {[%emt 0:00:32]} dxc4 {[%emt 0:01:47]} 14. Bxc4 {[%emt 0:01:26]} Bf5 {[%emt 0:10:12] Against Rfb1} 15. Ra3 {[%emt 0:07:21] White is more active.} Nbd7 {[%emt 0:04:52][%cal Bb8d7,Bd7b6,Bb6d5][%mdl 32]} 16. Rfa1 {[%emt 0:03:53]} ({White should play} 16. Bb5 $14) 16... Rfc8 $1 $11 {[%emt 0:05:15]} 17. Bb5 {[%emt 0:13:14]} ({Much worse is} 17. Rxa4 Rxa4 18. Rxa4 Nb6 $15) 17... Nd5 {[%emt 0:07:26]} 18. c4 {[%emt 0:00:13]} Nxf4 {[%emt 0:00:51]} 19. exf4 {[%emt 0:00:07]} Nb6 {[%emt 0:00:42]} 20. c5 {[%emt 0:03:06]} Nd5 {[%emt 0:04:35]} 21. g3 {[%emt 0:01:28]} Rd8 {[%emt 0:06:50]} 22. Bc4 {[%emt 0:13:15]} Bc2 {[%emt 0:06:50]} 23. Bxd5 {[%emt 0:07:57]} Rxd5 {[%emt 0:00:05]} 24. R3a2 {[%emt 0:00:19]} Rxd4 {[%emt 0:02:00]} 25. Nxd4 {[%emt 0:00:15]} ({Not} 25. Rxc2 $2 Rxd2 $1 {[%mdl 512]} 26. Nxd2 Bxa1 $19) 25... Bxd4 {[%emt 0:00:06]} 26. Rc1 {[%emt 0:00:32]} ({Don't play} 26. Re1 Bf5 27. Rxe7 Bxc5 28. Rxb7 a3 $17) 26... Bd3 {[%emt 0:03:24] [#]} (26... Bf5 $14) 27. Nf3 {[%emt 0:01:07]} ({White should try} 27. Nc4 $1 $16 {[%cal Rc4b6]}) 27... Bf6 {[%emt 0:01:43] This bishop pair is nice. The position is equal.} 28. Ne5 {[%emt 0:00:37]} Bb5 {[%emt 0:04:23]} 29. Rb1 {[%emt 0:04:52]} Ra5 {[%emt 0:00:16]} 30. Rb4 {[%emt 0:00:33]} Bxe5 {[%emt 0:03:04]} 31. fxe5 {[%emt 0:00:06][%mdl 4096] Endgame KRR-KRB} Bc6 {[%emt 0:00:03]} 32. Rc4 $1 {[%emt 0:00:41]} Rb5 {[%emt 0:00:52] ( -> ...Rb1+)} 33. Rc1 {[%emt 0:00:06] Against Rb1} Rb4 {[%emt 0:00:42]} 34. f4 {[%emt 0:02:12]} e6 {[%emt 0:00:34]} 35. Rcc2 {[%emt 0:01:58]} h5 {[%emt 0:03:10]} 36. Rcb2 {[%emt 0:06:24]} Rc4 {[%emt 0:00:20]} 37. Rc2 {[%emt 0:00:07]} Rb4 {[%emt 0:00:05]} 38. Rcb2 {[%emt 0:00:09]} Rc4 {[%emt 0:00:04]} 39. Rc2 {[%emt 0:00:05] Weighted Error Value: White=0.07 (flawless) /Black=0.04 (flawless)} 1/2-1/2

[Event "Austrian Championship 2022"]
[Site "Vienna"]
[Date "2022.08.16"]
[Round "6.3"]
[White "Ernst, Robert"]
[Black "Kersten, Julian"]
[Result "1/2-1/2"]
[ECO "E94"]
[WhiteElo "2001"]
[BlackElo "1999"]
[Annotator "NA RC"]
[PlyCount "141"]
[EventDate "2022.08.12"]
[EventType "swiss"]
[EventCountry "AUT"]
[SourceTitle "playchess.com"]
[Source "ChessBase"]
[SourceQuality "1"]
[TimeControl "40/5400+30:1800+30"]

1. d4 {[%emt 0:00:04]} Nf6 {[%emt 0:09:13]} 2. c4 {[%emt 0:00:14]} g6 {[%emt 0:00:12]} 3. Nc3 {[%emt 0:00:08]} Bg7 {[%emt 0:00:06]} 4. e4 {[%emt 0:00:10]} d6 {[%emt 0:00:06]} 5. Nf3 {[%emt 0:00:12]} O-O {[%emt 0:00:08]} 6. Be2 {[%emt 0:00:12]} e5 {[%emt 0:00:18]} 7. O-O {[%emt 0:00:14]} Nbd7 {[%emt 0:00:12]} 8. Be3 {[%emt 0:03:01]} Nh5 {[%emt 0:00:40]} 9. Qd2 {[%emt 0:03:24]} Re8 {[%emt 0:02:14]} 10. dxe5 {[%emt 0:01:15]} dxe5 {[%emt 0:02:44]} 11. Rfd1 {[%emt 0:02:24]} c6 {[%emt 0:03:04]} 12. Ne1 {[%emt 0:10:35]} Nhf6 {[%emt 0:03:48]} 13. b4 {[%emt 0:01:19]} Qe7 {[%emt 0:01:04]} 14. c5 {[%emt 1:14:18]} Nf8 {[%emt 0:12:33]} 15. f3 {[%emt 0:00:00]} Ne6 {[%emt 0:04:31]} 16. Bf1 {[%emt 0:00:00]} Rd8 {[%emt 0:05:26]} 17. Qf2 {[%emt 0:00:00]} Nd4 {[%emt 0:02:51]} 18. Nc2 {[%emt 0:00:00]} Nxc2 {[%emt 0:05:02]} 19. Rxd8+ {[%emt 0:00:00]} Qxd8 {[%emt 0:00:07]} 20. Qxc2 {[%emt 0:00:00]} Be6 {[%emt 0:01:39]} 21. a4 {[%emt 0:00:00]} Bf8 {[%emt 0:05:15]} 22. Qb2 {[%emt 0:00:00]} Nd7 {[%emt 0:07:48]} 23. a5 {[%emt 0:00:00]} a6 {[%emt 0:09:01]} 24. Na4 {[%emt 0:00:00]} Be7 {[%emt 0:04:45]} 25. Nb6 {[%emt 0:00:00]} Nxb6 {[%emt 0:04:44]} 26. axb6 {[%emt 0:00:00]} Bg5 {[%emt 0:04:13]} 27. Qc3 {[%emt 0:00:00]} Bxe3+ {[%emt 0:03:41]} 28. Qxe3 {[%emt 0:00:00]} Qd7 {[%emt 0:00:44]} 29. Ra3 {[%emt 0:00:00]} Qd1 {[%emt 0:02:45]} 30. Qc3 {[%emt 0:00:00]} f6 {[%emt 0:05:18]} 31. Ra1 {[%emt 0:00:00]} Qd7 {[%emt 0:00:15]} 32. Be2 {[%emt 0:00:00]} Rd8 {[%emt 0:00:51]} 33. Rd1 {[%emt 0:00:00]} Qc8 {[%emt 0:00:19]} 34. Rxd8+ {[%emt 0:01:43]} Qxd8 {[%emt 0:00:02]} 35. Qd3 {[%emt 0:00:17]} Qxd3 {[%emt 0:01:27]} 36. Bxd3 {[%emt 0:00:03]} Bc8 {[%emt 0:00:36]} 37. Kf2 {[%emt 0:00:42]} h5 {[%emt 0:00:42]} 38. h4 {[%emt 0:00:33]} Kg7 {[%emt 0:00:20]} 39. g3 {[%emt 0:02:24]} Kf7 {[%emt 0:00:34]} 40. f4 {[%emt 0:01:02]} Kg7 {[%emt 0:00:40]} 41. Ke3 {[%emt 0:09:33]} Kh6 {[%emt 0:02:16]} 42. Be2 {[%emt 0:02:03]} Kg7 {[%emt 0:01:08]} 43. Kd2 {[%emt 0:01:56]} Kh6 {[%emt 0:00:45]} 44. Kc3 {[%emt 0:00:45]} Kg7 {[%emt 0:00:29]} 45. Kb3 {[%emt 0:06:15]} Kh6 {[%emt 0:01:40]} 46. Kc3 {[%emt 0:06:11]} Kg7 {[%emt 0:00:06]} 47. f5 {[%emt 0:01:00]} Kh6 {[%emt 0:00:56]} 48. fxg6 {[%emt 0:00:09]} Kxg6 {[%emt 0:00:16]} 49. Kb3 {[%emt 0:00:36]} Kh6 {[%emt 0:02:42]} 50. Kc3 {[%emt 0:00:38]} Kg6 {[%emt 0:00:10]} 51. Kd2 {[%emt 0:00:08]} Kh6 {[%emt 0:00:18]} 52. Ke3 {[%emt 0:00:15]} Kg6 {[%emt 0:00:25]} 53. Bc4 {[%emt 0:00:11]} Kg7 {[%emt 0:00:39]} 54. Kd2 {[%emt 0:01:07]} Kg6 {[%emt 0:00:28]} 55. Kc3 {[%emt 0:00:31]} Kg7 {[%emt 0:00:48]} 56. Kb3 {[%emt 0:00:32]} Kg6 {[%emt 0:00:23]} 57. Ka4 {[%emt 0:00:23]} Kg7 {[%emt 0:00:16]} 58. Ka5 {[%emt 0:00:30]} Kg6 {[%emt 0:01:09]} 59. Be2 {[%emt 0:00:15]} Kh6 {[%emt 0:00:49]} 60. Ka4 {[%emt 0:01:30]} Kg6 {[%emt 0:00:20]} 61. Kb3 {[%emt 0:00:18]} Kh6 {[%emt 0:00:32]} 62. Kc3 {[%emt 0:00:32]} Kg6 {[%emt 0:00:20]} 63. Kd2 {[%emt 0:00:28]} Kh6 {[%emt 0:00:08]} 64. Ke3 {[%emt 0:00:01]} Kg6 {[%emt 0:00:15]} 65. Kf2 {[%emt 0:00:31]} Kh6 {[%emt 0:01:02]} 66. Kg2 {[%emt 0:01:33]} Kg6 {[%emt 0:00:10]} 67. Bc4 {[%emt 0:00:28]} Kg7 {[%emt 0:00:48]} 68. Kh2 {[%emt 0:00:19]} Kg6 {[%emt 0:00:16]} 69. Bf1 {[%emt 0:00:20]} Kh6 {[%emt 0:00:47]} 70. Bh3 {[%emt 0:05:04]} Bg4 {[%emt 0:00:39]} 71. Bf1 {[%emt 0:07:44]} 1/2-1/2